fUST/lending_fUST_20240817
["ID","MTS","AMOUNT","RATE_DAILY","PERIOD"]
[335108630,1723836819887,-493.12601984,0.00012989,2]
[335108631,1723836819913,-46552.54921616,0.00013971,2]
[335108652,1723837048281,-2584.3384,0.00013697,2]
[335108653,1723837048306,-182.2907837,0.00013697,2]
[335108654,1723837048332,-160.33534964,0.00013698,2]
[335108655,1723837048358,-231.99090105,0.00013698,2]
[335108656,1723837048382,-158.01490399,0.00013971,2]
[335108657,1723837048407,-493.12601984,0.00013971,2]
[335108658,1723837048432,-493.12601984,0.00014245,2]
[335108659,1723837048457,-240.74853049,0.00017266,2]
[335108660,1723837048481,-1260.16836963,0.0002,2]
[335108661,1723837048506,-121865.31721619,0.0002,2]
[335108730,1723837544116,-591.0989827,0.00013597,2]
[335108731,1723837544140,-62.37888805,0.00014245,2]
[335108732,1723837551101,-185.77579704,0.00014245,2]
[335108736,1723837631142,-2459.60147134,0.0002,2]
[335108738,1723837633111,-893.3687658,0.0002,2]
[335108739,1723837642167,-982.7654346,0.0002,2]
[335108740,1723837648099,-153.0,0.0002,2]
[335108746,1723837746121,-55.23523681,0.0002,2]
[335108747,1723837746145,-1699.96651214,0.00024242,2]
[335108748,1723837746169,-162.8626633,0.00041785,120]
[335108749,1723837746190,-500.0,0.00043272,30]
[335108750,1723837746212,-500.0,0.0004344,30]
[335108751,1723837746235,-500.0,0.0004357,30]
[335108752,1723837746256,-500.0,0.00043693,30]
[335108753,1723837746280,-500.0,0.00043795,30]
[335108754,1723837746303,-500.0,0.0004427,30]
[335108755,1723837746327,-320.0,0.00044339,30]
[335108756,1723837746349,-490.35456642,0.0004434,30]
[335108759,1723837754106,-9.64543358,0.0004434,30]
[335108760,1723837754128,-256.17563328,0.00044801,30]
[335108761,1723837756102,-243.82436672,0.00044801,30]
[335108762,1723837756123,-500.0,0.00045024,30]
[335108763,1723837756145,-500.0,0.00045197,30]
[335108764,1723837756165,-500.0,0.00045474,30]
[335108765,1723837756186,-4170.6228,0.00045533,30]
[335108766,1723837756207,-500.0,0.0004574,30]
[335108767,1723837756228,-500.0,0.00045767,30]
[335108768,1723837756248,-500.0,0.00045915,30]
[335108769,1723837756268,-500.0,0.00045951,30]
[335108770,1723837756296,-500.0,0.00045962,30]
[335108771,1723837756316,-500.0,0.00045965,30]
[335108772,1723837756336,-500.0,0.00046306,30]
[335108773,1723837756356,-500.0,0.00046479,30]
[335108774,1723837756376,-607.6046529,0.00050136,120]
[335108775,1723837756396,-500.0,0.00052687,120]
[335108776,1723837756421,-500.0,0.00052687,120]
[335108777,1723837756442,-500.0,0.00052687,120]
[335108778,1723837756464,-500.0,0.00052687,120]
[335108779,1723837756487,-500.0,0.00052687,120]
[335108780,1723837756508,-500.0,0.00052687,120]
[335108781,1723837756531,-407.82017328,0.00052687,120]
[335108782,1723837756551,-7200.0,0.00052688,120]
[335108783,1723837756572,-153.0,0.00060531,60]
[335108784,1723837756592,-153.0,0.00060531,60]
[335108785,1723837756615,-207.4367972,0.00060531,60]
[335108786,1723837756636,-153.0,0.00060531,60]
[335108787,1723837756660,-153.0,0.00060531,60]
[335108788,1723837756683,-207.4367972,0.00060531,60]
[335108789,1723837756777,-153.0,0.00060531,60]
[335108790,1723837756800,-153.0,0.00060531,60]
[335108791,1723837756821,-207.4367972,0.00060531,60]
[335108792,1723837756843,-153.0,0.00060531,60]
[335108793,1723837756864,-153.0,0.00060531,60]
[335108794,1723837756885,-207.4367972,0.00060531,60]
[335108795,1723837756906,-153.0,0.00060531,60]
[335108796,1723837756928,-207.4367972,0.00060531,60]
[335108797,1723837756950,-207.4367972,0.00060531,60]
[335108798,1723837756972,-207.4367972,0.00060531,60]
[335108799,1723837756993,-207.4367972,0.00060531,60]
[335108800,1723837757023,-207.4367972,0.00060531,60]
[335108801,1723837757051,-207.4367972,0.00060531,60]
[335108802,1723837757073,-272.2843982,0.00060531,60]
[335108803,1723837757094,-153.0,0.00060531,60]
[335108804,1723837757114,-153.0,0.00060531,60]
[335108805,1723837757135,-153.0,0.00060531,60]
[335108806,1723837757157,-153.0,0.00060531,60]
[335108807,1723837757179,-153.0,0.00060531,60]
[335108808,1723837757200,-153.0,0.00060531,60]
[335108809,1723837757221,-153.0,0.00060531,60]
[335108810,1723837757247,-153.0,0.00060531,60]
[335108811,1723837757270,-153.0,0.00060531,60]
[335108812,1723837757292,-153.0,0.00060531,60]
[335108813,1723837757313,-153.0,0.00060531,60]
[335108814,1723837757334,-153.0,0.00060531,60]
[335108815,1723837757358,-153.0,0.00060531,60]
[335108816,1723837757378,-153.0,0.00060531,60]
[335108817,1723837757400,-153.0,0.00060531,60]
[335108818,1723837757427,-411.427603,0.00060531,60]
[335108819,1723837758153,-3000.0,0.00069,120]
[335108820,1723837758176,-2400.75950941,0.00069,120]
[335108821,1723837758198,-3000.0,0.0006901,120]
[335108822,1723837758220,-3000.0,0.0006902,120]
[335108823,1723837758241,-3789.630768,0.0006903,120]
[335108824,1723837758262,-500.0,0.0007,120]
[335108825,1723837758285,-1462.64444656,0.00074717,120]
[335108826,1723837758306,-500.0,0.00075,120]
[335108827,1723837758326,-500.0,0.0008,120]
[335108828,1723837758348,-2000.0,0.00081486,120]
[335108829,1723837758368,-2000.0,0.00089729,120]
[335108830,1723837758389,-500.0,0.0009,120]
[335108831,1723837758411,-500.0,0.00095,120]
[335108832,1723837758434,-2000.0,0.00098804,120]
[335108833,1723837758455,-500.0,0.001,120]
[335108834,1723837758476,-2000.0,0.0010869,120]
[335108835,1723837758503,-290.0,0.00119,120]
[335108836,1723837758525,-500.0,0.0012,120]
[335108837,1723837758546,-2000.0,0.001269,120]
[335108838,1723837758566,-2000.0,0.0014253,120]
[335108839,1723837758588,-500.0,0.0016,120]
[335108840,1723837758609,-2000.0,0.0016641,120]
[335108841,1723837758630,-2000.0,0.0018451,120]
[335108842,1723837758650,-277.70436963,0.001925,120]
[335108843,1723837758671,-500.0,0.002,120]
[335108844,1723837758691,-2000.0,0.002135,120]
[335108845,1723837758712,-2000.0,0.00246674,120]
[335108846,1723837758733,-150.0,0.0025,120]
[335108847,1723837758753,-500.0,0.0025,120]
[335108848,1723837758773,-150.0,0.0026,120]
[335108849,1723837758794,-150.0,0.0027,120]
[335108850,1723837758816,-27714.6540469,0.00273963,60]
[335108851,1723837758836,-151.0,0.00273973,30]
[335108852,1723837758856,-151.0,0.00273973,30]
[335108853,1723837758877,-151.0,0.00273973,30]
[335108854,1723837758898,-151.0,0.00273973,30]
[335108855,1723837758919,-151.0,0.00273973,30]
[335108856,1723837758939,-151.0,0.00273973,30]
[335108857,1723837758960,-151.0,0.00273973,30]
[335108858,1723837758980,-151.0,0.00273973,30]
[335108859,1723837759002,-151.0,0.00273973,30]
[335108860,1723837759022,-151.0,0.00273973,30]
[335108861,1723837759111,-151.0,0.00273973,30]
[335108862,1723837759131,-151.0,0.00273973,30]
[335108863,1723837759152,-151.0,0.00273973,30]
[335108864,1723837759175,-151.0,0.00273973,30]
[335108865,1723837759195,-151.0,0.00273973,30]
[335108866,1723837759216,-151.0,0.00273973,30]
[335108867,1723837759236,-151.0,0.00273973,30]
[335108868,1723837759257,-151.0,0.00273973,30]
[335108869,1723837759279,-187.051643,0.00273973,30]
[335108870,1723837759301,-187.328398,0.00273973,120]
[335108871,1723837759321,-151.0,0.00273973,120]
[335108872,1723837759343,-151.0,0.00273973,120]
[335108873,1723837759365,-176.026024,0.00273973,120]
[335108874,1723837759385,-151.0,0.00273973,120]
[335108875,1723837759408,-151.0,0.00273973,120]
[335108876,1723837759432,-261.60579,0.00273973,120]
[335108877,1723837759457,-311.456574,0.00273973,120]
[335108878,1723837759479,-311.456574,0.00273973,120]
[335108879,1723837759503,-311.456574,0.00273973,120]
[335108880,1723837759526,-311.456574,0.00273973,120]
[335108881,1723837759546,-311.456574,0.00273973,120]
[335108882,1723837759567,-311.456574,0.00273973,120]
[335108883,1723837759589,-311.456574,0.00273973,120]
[335108884,1723837759610,-311.456574,0.00273973,120]
[335108885,1723837759630,-311.456574,0.00273973,120]
[335108886,1723837759650,-311.456574,0.00273973,120]
[335108887,1723837759671,-311.456574,0.00273973,120]
[335108888,1723837759691,-311.456574,0.00273973,120]
[335108889,1723837759711,-311.456574,0.00273973,120]
[335108890,1723837759733,-311.456574,0.00273973,120]
[335108891,1723837759753,-311.456574,0.00273973,120]
[335108892,1723837759773,-311.456574,0.00273973,120]
[335108893,1723837759800,-311.456574,0.00273973,120]
[335108894,1723837759821,-311.456574,0.00273973,120]
[335108895,1723837759842,-311.456574,0.00273973,120]
[335108896,1723837759865,-254.293741,0.00273973,120]
[335108897,1723837759886,-254.293741,0.00273973,120]
[335108898,1723837759907,-254.293741,0.00273973,120]
[335108899,1723837759927,-254.293741,0.00273973,120]
[335108900,1723837759947,-254.293741,0.00273973,120]
[335108901,1723837759968,-254.293741,0.00273973,120]
[335108902,1723837759988,-254.293741,0.00273973,120]
[335108903,1723837760008,-254.293741,0.00273973,120]
[335108904,1723837760032,-254.293741,0.00273973,120]
[335108905,1723837760051,-254.293741,0.00273973,120]
[335108906,1723837760072,-254.293741,0.00273973,120]
[335108907,1723837760092,-254.293741,0.00273973,120]
[335108908,1723837760113,-254.293741,0.00273973,120]
[335108909,1723837760134,-254.293741,0.00273973,120]
[335108910,1723837760155,-254.293741,0.00273973,120]
[335108911,1723837760176,-254.293741,0.00273973,120]
[335108912,1723837760197,-254.293741,0.00273973,120]
[335108913,1723837760217,-254.293741,0.00273973,120]
[335108914,1723837760236,-254.293741,0.00273973,120]
[335108915,1723837760256,-254.293742,0.00273973,120]
[335108916,1723837760279,-203.56544,0.00273973,120]
[335108917,1723837760299,-203.56544,0.00273973,120]
[335108918,1723837760319,-203.56544,0.00273973,120]
[335108919,1723837760341,-203.56544,0.00273973,120]
[335108920,1723837760362,-203.56544,0.00273973,120]
[335108921,1723837760383,-203.56544,0.00273973,120]
[335108922,1723837760404,-203.56544,0.00273973,120]
[335108923,1723837760429,-223.707864,0.00273973,120]
[335108924,1723837760450,-203.56544,0.00273973,120]
[335108925,1723837760471,-203.56544,0.00273973,120]
[335108926,1723837760493,-203.56544,0.00273973,120]
[335108927,1723837760514,-203.56544,0.00273973,120]
[335108928,1723837760536,-203.56544,0.00273973,120]
[335108929,1723837760556,-203.56544,0.00273973,120]
[335108930,1723837760576,-203.56544,0.00273973,120]
[335108931,1723837760597,-203.56544,0.00273973,120]
[335108932,1723837760690,-203.56544,0.00273973,120]
[335108933,1723837760711,-203.56544,0.00273973,120]
[335108934,1723837760733,-203.56544,0.00273973,120]
[335108935,1723837760754,-203.56544,0.00273973,120]
[335108936,1723837760777,-203.56544,0.00273973,120]
[335108937,1723837760797,-222.878183,0.00273973,120]
[335108938,1723837760817,-1075.883765,0.00273973,120]
[335108939,1723837760838,-1075.883765,0.00273973,120]
[335108940,1723837760859,-1075.883765,0.00273973,120]
[335108941,1723837760880,-1075.883765,0.00273973,120]
[335108942,1723837760901,-1075.883765,0.00273973,120]
[335108943,1723837760922,-1075.883765,0.00273973,120]
[335108944,1723837760942,-1075.883765,0.00273973,120]
[335108945,1723837760963,-1075.883765,0.00273973,120]
[335108946,1723837760984,-1075.883765,0.00273973,120]
[335108947,1723837761006,-1075.883765,0.00273973,120]
[335108948,1723837761030,-1075.883765,0.00273973,120]
[335108949,1723837761052,-1075.883765,0.00273973,120]
[335108950,1723837761072,-1075.883765,0.00273973,120]
[335108951,1723837761094,-1075.883765,0.00273973,120]
[335108952,1723837761117,-1075.883765,0.00273973,120]
[335108953,1723837761138,-1075.883765,0.00273973,120]
[335108954,1723837761159,-1075.883765,0.00273973,120]
[335108955,1723837761181,-1075.883765,0.00273973,120]
[335108956,1723837761202,-1075.883765,0.00273973,120]
[335108957,1723837761225,-1075.883765,0.00273973,120]
[335108958,1723837761245,-779.269263,0.00273973,120]
[335108959,1723837761266,-779.269263,0.00273973,120]
[335108960,1723837761290,-779.269263,0.00273973,120]
[335108961,1723837761312,-779.269263,0.00273973,120]
[335108962,1723837761334,-779.269263,0.00273973,120]
[335108963,1723837761355,-779.269263,0.00273973,120]
[335108964,1723837761376,-779.269263,0.00273973,120]
[335108965,1723837761398,-779.269263,0.00273973,120]
[335108966,1723837761421,-779.269263,0.00273973,120]
[335108967,1723837761442,-779.269263,0.00273973,120]
[335108968,1723837761464,-779.269263,0.00273973,120]
[335108969,1723837761485,-779.269263,0.00273973,120]
[335108970,1723837761506,-779.269263,0.00273973,120]
[335108971,1723837761527,-779.269263,0.00273973,120]
[335108972,1723837761547,-779.269263,0.00273973,120]
[335108973,1723837761567,-779.269263,0.00273973,120]
[335108974,1723837761587,-779.269263,0.00273973,120]
[335108975,1723837761613,-779.269263,0.00273973,120]
[335108976,1723837761635,-779.269263,0.00273973,120]
[335108977,1723837761657,-779.269268,0.00273973,120]
[335108978,1723837761678,-2503.0,0.00275,120]
[335108979,1723837761698,-2000.0,0.00276886,120]
[335108980,1723837761719,-150.0,0.0028,120]
[335108981,1723837761740,-3500.14669089,0.0028,120]
[335108982,1723837761760,-998.0,0.0028495,120]
[335108983,1723837761782,-2503.0,0.00285,120]
[335108984,1723837761803,-156.76484272,0.002887,120]
[335108985,1723837761824,-150.0,0.0029,120]
[335108986,1723837761844,-150.112233,0.0029,29]
[335108987,1723837761865,-2503.0,0.00295,120]
[335108988,1723837761886,-150.0,0.003,120]
[335108989,1723837761907,-500.0,0.003,120]
[335108990,1723837761928,-4769.0,0.003,120]
[335108991,1723837761950,-500.0,0.003,120]
[335108992,1723837761970,-2503.0,0.00305,120]
[335108993,1723837761991,-150.0,0.0031,120]
[335108994,1723837762013,-2000.0,0.00310797,120]
[335108995,1723837762037,-2503.0,0.00315,120]
[335108996,1723837762060,-27714.6540469,0.0031999,90]
[335108997,1723837762081,-150.0,0.0032,120]
[335108998,1723837762102,-2503.0,0.00325,120]
[335108999,1723837762122,-150.0,0.0033,120]
[335109000,1723837762207,-2503.0,0.00335,120]
[335109001,1723837762228,-26019.17139468,0.0034,120]
[335109002,1723837762249,-150.0,0.0034,120]
[335109003,1723837762270,-2503.0,0.00345,120]
[335109004,1723837762292,-150.0,0.0035,120]
[335109005,1723837762312,-2503.0,0.00355,120]
[335109006,1723837762333,-150.0,0.0036,120]
[335109007,1723837762353,-150.112233,0.0036,31]
[335109008,1723837762375,-2503.0,0.00365,120]
[335109009,1723837762398,-150.0,0.0037,120]
[335109010,1723837762420,-2503.0,0.00375,120]
[335109011,1723837762441,-150.0,0.0038,120]
[335109012,1723837762462,-2503.0,0.00385,120]
[335109013,1723837762483,-313.52968544,0.003851,120]
[335109014,1723837762506,-150.0,0.0039,120]
[335109015,1723837762527,-2503.0,0.00395,120]
[335109016,1723837762547,-6999.99,0.00399,120]
[335109017,1723837762567,-150.0,0.004,120]
[335109018,1723837762588,-7000.0,0.004,90]
[335109019,1723837762608,-500.0,0.004,120]
[335109020,1723837762628,-1000.0,0.004,120]
[335109021,1723837762648,-4769.0,0.004,120]
[335109022,1723837762668,-2503.0,0.00405,120]
[335109023,1723837762689,-150.0,0.0041,120]
[335109024,1723837762709,-2503.0,0.00415,120]
[335109025,1723837762728,-150.0,0.0042,120]
[335109026,1723837762748,-2503.0,0.00425,120]
[335109027,1723837762768,-150.0,0.0043,120]
[335109028,1723837762789,-150.112233,0.0043,27]
[335109029,1723837762809,-2000.0,0.00431152,120]
[335109030,1723837762829,-2503.0,0.00435,120]
[335109031,1723837762849,-150.0,0.0044,120]
[335109032,1723837762869,-2503.0,0.00445,120]
[335109033,1723837762889,-150.0,0.0045,120]
[335109034,1723837762908,-500.0,0.0045,120]
[335109035,1723837762928,-2503.0,0.00455,120]
[335109036,1723837762949,-150.0,0.0046,120]
[335109037,1723837762969,-2503.0,0.00465,120]
[335109038,1723837762990,-111810.71890587,0.004695,120]
[335109039,1723837765137,-3000.0,0.002599,120]
[335109040,1723837765160,-112008.28818223,0.004695,120]
[335109041,1723837768121,-14461.13557164,0.00398,120]
[335109048,1723837784812,2000.0,0.0018275,120]
[335109049,1723837789895,2000.0,0.0018275,120]
[335109051,1723837795172,1288.82231153,0.0021499,120]
[335109114,1723837832631,-514.07631137,0.0017683,120]
[335109116,1723837832642,-810.57368863,0.0019679,120]
[335109118,1723837832656,-1189.42631137,0.0019679,120]
[335109120,1723837832666,-914.67106045,0.0022196,120]
[335109123,1723837832686,-1085.32893955,0.0022196,120]
[335109125,1723837832695,-914.67106045,0.0024556,120]
[335109134,1723837832753,-1085.32893955,0.0024556,120]
[335109136,1723837832762,-1812.14606045,0.00259,120]
[335109138,1723837832774,-1187.85393955,0.00259,120]
[335109140,1723837832783,-151.0,0.00273973,120]
[335109142,1723837832792,-160.456573,0.00273973,120]
[335109144,1723837832801,-217.21368707,0.00275,120]
[335109176,1723837838873,-2285.78631293,0.00275,120]
[335109177,1723837838884,-2503.0,0.00285,120]
[335109178,1723837838894,-150.112237,0.002914,30]
[335109180,1723837838903,-2503.0,0.00295,120]
[335109181,1723837838913,-2000.0,0.0029753,120]
[335109182,1723837838923,-2503.0,0.00305,120]
[335109183,1723837838932,-2503.0,0.00315,120]
[335109184,1723837838942,-2503.0,0.00325,120]
[335109185,1723837838952,-150.112233,0.003276,27]
[335109186,1723837838962,-1139.6935037,0.00335,120]
[335109187,1723837838975,-1363.3064963,0.00335,120]
[335109188,1723837838984,-155.03371112,0.00345,120]
[335109189,1723837839494,-2347.96628888,0.00345,120]
[335109190,1723837839504,-2503.0,0.00355,120]
[335109191,1723837839513,-150.112233,0.003638,30]
[335109192,1723837839526,-2503.0,0.00365,120]
[335109193,1723837839536,-2503.0,0.00375,120]
[335109194,1723837839545,-721217.7935517,0.003795,120]
[335109195,1723837839558,-2996.42492234,0.003795,120]
[335109199,1723837840810,-584713.44943496,0.003795,120]
[335109200,1723837841409,-2040.8022408,0.003795,120]
[335109211,1723837843654,-47045.675236,0.003795,120]
[335109221,1723837844070,-572.6086523,0.003795,120]
[335109230,1723837944875,500.0,0.00044913,30]
[335109245,1723838737127,-3520.02990732,0.00012898,2]
[335109246,1723838826109,-493.12601984,0.00012999,2]
[335109247,1723838826131,-156.81279309,0.00013025,2]
[335109248,1723838826154,-228.72951774,0.00013025,2]
[335109249,1723838826176,-324.62040918,0.00013051,2]
[335109250,1723838826198,-301.29579535,0.00013477,2]
[335109251,1723838826221,-331.1043531,0.00013496,2]
[335109252,1723838826275,-218.94236669,0.00013496,2]
[335109253,1723838826296,-196.66577865,0.00013496,2]
[335109254,1723838826318,-154.74467129,0.00013497,2]
[335109255,1723838826339,-494.87154082,0.00013792,2]
[335109256,1723838826361,-250.32373804,0.00014245,2]
[335109257,1723838826497,-240.2347681,0.00014245,2]
[335109258,1723838826525,-168.0279449,0.00014247,2]
[335109259,1723838826546,-188.49095664,0.00014519,2]
[335109260,1723838826567,-180.5864575,0.00014519,2]
[335109261,1723838826590,-1572.17707945,0.00015634,2]
[335109262,1723838826611,-882.51902373,0.00025399,2]
[335109263,1723838826633,-300.0,0.00026574,2]
[335109264,1723838826654,-292.0,0.00026574,2]
[335109265,1723838826675,-400.0,0.00029231,2]
[335109266,1723838826696,-302.0,0.0003,120]
[335109267,1723838826717,-151.0,0.0003,120]
[335109268,1723838826739,-259.005231,0.00035616,120]
[335109269,1723838826760,-500.0,0.0004334,30]
[335109270,1723838826788,-500.0,0.00043658,30]
[335109271,1723838826808,-500.0,0.00043803,30]
[335109272,1723838826830,-243.84,0.00044,120]
[335109273,1723838826857,-3000.0,0.00044,120]
[335109274,1723838826878,-150.0,0.00044193,120]
[335109275,1723838826902,-200.0,0.00044193,120]
[335109276,1723838826925,-500.0,0.00044477,30]
[335109277,1723838826948,-1575.59586514,0.00044909,28]
[335109278,1723838826970,-500.89508516,0.00044912,120]
[335109279,1723838826993,-500.0,0.00044912,120]
[335109280,1723838827017,-500.0,0.00044912,120]
[335109281,1723838827042,-333.45349737,0.00044912,31]
[335109282,1723838827066,-502.51194388,0.00044912,120]
[335109283,1723838827087,-504.03321201,0.00044912,120]
[335109284,1723838827109,-1000.0,0.00044912,120]
[335109285,1723838827131,-16531.8020085,0.00044913,120]
[335109286,1723838827173,-4493.71407922,0.00044913,120]
[335109287,1723838830148,-7395.84649227,0.00044913,120]
[335109288,1723838833102,-155.62551165,0.00044913,120]
[335109289,1723838848103,-243.20347604,0.00044913,120]
[335109290,1723838946149,-493.12601984,0.00012991,2]
[335109291,1723838946172,-1394.1852051,0.00032372,2]
[335109292,1723838946194,-500.0,0.0004301,30]
[335109293,1723838946304,-158.69340468,0.0004396,30]
[335109294,1723838948242,-341.30659532,0.0004396,30]
[335109295,1723838948266,-500.0,0.00044054,30]
[335109296,1723838948289,-500.0,0.00044089,30]
[335109297,1723838948311,-500.0,0.0004411,30]
[335109298,1723838948333,-500.0,0.00044319,30]
[335109299,1723838948357,-500.0,0.00044517,30]
[335109300,1723838948378,-500.0,0.00044838,30]
[335109301,1723838948399,-14610.25483219,0.00044913,120]
[335109302,1723838948421,-9382.4224,0.0004502,30]
[335109303,1723838948441,-500.0,0.00045295,30]
[335109304,1723838948463,-465.57402324,0.00045458,15]
[335109305,1723838948486,-500.0,0.00045474,30]
[335109306,1723838948510,-500.0,0.00045798,30]
[335109307,1723838948532,-500.0,0.00045872,30]
[335109308,1723838948554,-849.90020374,0.00046022,30]
[335109309,1723838948576,-500.0,0.00046142,30]
[335109310,1723838948596,-306.0,0.00058005,60]
[335109311,1723838948619,-589.6077254,0.00058005,2]
[335109312,1723838948640,-306.0,0.00058005,60]
[335109313,1723838948663,-294.2756488,0.00058005,2]
[335109314,1723838948686,-207.4367972,0.00058005,60]
[335109315,1723838948711,-207.4367972,0.00058005,60]
[335109316,1723838948737,-207.4367972,0.00058005,60]
[335109317,1723838948761,-207.2356574,0.00058005,60]
[335109318,1723838948786,-3000.0,0.00069,120]
[335109319,1723838948816,-2000.0,0.00069,120]
[335109320,1723838948844,-500.0,0.00069009,120]
[335109321,1723838948869,-500.0,0.00069009,120]
[335109322,1723838948898,-500.0,0.00069009,120]
[335109323,1723838948923,-500.0,0.00069009,120]
[335109324,1723838948948,-500.0,0.00069009,120]
[335109325,1723838948977,-340.78201733,0.00069009,120]
[335109326,1723838948999,-500.0,0.00069009,120]
[335109327,1723838949021,-500.0,0.00069009,120]
[335109328,1723838949042,-500.0,0.00069009,120]
[335109329,1723838949065,-500.0,0.00069009,120]
[335109330,1723838949088,-2154.01277125,0.0006901,120]
[335109331,1723838949230,-845.98722875,0.0006901,120]
[335109332,1723838949253,-3000.0,0.0006902,120]
[335109333,1723838949274,-3000.0,0.0006903,120]
[335109334,1723838949295,-2180.14980903,0.0006904,120]
[335109335,1723838952089,-2888.34171597,0.0006904,120]
[335109336,1723838952110,-2000.0,0.00078,120]
[335109337,1723838952130,-3000.0,0.0012,120]
[335109338,1723838952150,-150.0,0.002,120]
[335109339,1723838952172,-150.0,0.0021,120]
[335109340,1723838952193,-150.0,0.0022,120]
[335109341,1723838952214,-171.47476155,0.0022,120]
[335109342,1723838955117,-1828.52523845,0.0022,120]
[335109343,1723838955140,-150.0,0.0023,120]
[335109344,1723838955209,-150.0,0.0024,120]
[335109345,1723838974247,-150.0,0.0025,120]
[335109346,1723838974268,-500.0,0.0025,120]
[335109347,1723838974289,-150.0,0.0026,120]
[335109348,1723838974312,-1389.45587776,0.002699,120]
[335109349,1723838974333,-150.0,0.0027,120]
[335109350,1723838974356,-7166.96805946,0.0027395,120]
[335109351,1723838985052,612.23890957,0.00054439,2]
[335109359,1723839037059,500.0,0.002,120]
[335109378,1723839037910,-3595.0982056,0.0025,120]
[335109382,1723839037937,-1404.9017944,0.0025,120]
[335109384,1723839037947,-500.0,0.0025,120]
[335109386,1723839037956,-1155.0982057,0.0026999,120]
[335109404,1723839040072,-821.76072136,0.0026999,120]
[335109405,1723839040455,-2492.61899808,0.0026999,120]
[335109406,1723839040690,-1133.6302674,0.0026999,120]
[335109407,1723839040709,-13758.33218356,0.0026999,120]
[335109408,1723839040719,-15000.0,0.0027,120]
[335109409,1723839040729,-537.86466859,0.00273962,120]
[335109410,1723839040738,-29167.2958628,0.00273963,60]
[335109411,1723839040747,-151.0,0.00273973,120]
[335109412,1723839040756,-151.0,0.00273973,120]
[335109413,1723839040766,-151.0,0.00273973,120]
[335109414,1723839040774,-151.0,0.00273973,120]
[335109415,1723839040784,-281.476072,0.00273973,120]
[335109416,1723839040793,-151.0,0.00273973,120]
[335109417,1723839040803,-151.0,0.00273973,120]
[335109418,1723839040812,-276.768101,0.00273973,120]
[335109419,1723839040821,-371.84377,0.00273973,120]
[335109420,1723839040831,-371.84377,0.00273973,120]
[335109421,1723839040842,-371.84377,0.00273973,120]
[335109422,1723839040853,-371.84377,0.00273973,120]
[335109423,1723839040863,-371.84377,0.00273973,120]
[335109424,1723839040872,-371.84377,0.00273973,120]
[335109425,1723839040883,-437.661654,0.00273973,120]
[335109426,1723839040892,-371.84377,0.00273973,120]
[335109427,1723839040902,-437.661654,0.00273973,120]
[335109428,1723839040911,-371.84377,0.00273973,120]
[335109429,1723839040923,-437.661654,0.00273973,120]
[335109430,1723839040933,-371.84377,0.00273973,120]
[335109431,1723839040942,-437.661654,0.00273973,120]
[335109432,1723839040951,-371.84377,0.00273973,120]
[335109433,1723839040960,-437.661654,0.00273973,120]
[335109434,1723839040970,-371.84377,0.00273973,120]
[335109435,1723839040980,-437.661654,0.00273973,120]
[335109436,1723839040989,-371.84377,0.00273973,120]
[335109437,1723839040998,-371.84377,0.00273973,120]
[335109438,1723839041007,-371.84377,0.00273973,120]
[335109439,1723839041016,-437.661654,0.00273973,120]